fUSD/lending_fUSD_20260523
["ID","MTS","AMOUNT","RATE_DAILY","PERIOD"]
[422853294,1779525364000,500.0,8.9e-05,3]
[422853295,1779525367000,689.93076818,9e-05,3]
[422853296,1779525367000,310.06923182,9e-05,3]
[422853297,1779525408000,-2548.88041,8.955e-05,2]
[422853298,1779525461000,-2109.954,9e-05,2]
[422853299,1779525514000,-166.982,9e-05,2]
[422853300,1779525567000,-200.76138692,9e-05,2]
[422853301,1779525613000,-250.0,9.069e-05,2]
[422853302,1779525666000,-200.76138691,9.109e-05,2]
[422853303,1779525719000,-250.0,9.137e-05,2]
[422853305,1779525737000,161.6651179,4.861e-05,2]
[422853304,1779525737000,5.0848821,4.861e-05,2]
[422853306,1779525738000,166.75,5.671e-05,2]
[422853308,1779525738000,166.75,7.291e-05,2]
[422853309,1779525738000,60.9803837,8.102e-05,2]
[422853307,1779525738000,166.75,6.481e-05,2]
[422853310,1779525773000,-105.7696163,8.102e-05,2]
[422853311,1779525826000,-166.75,8.912e-05,2]
[422853312,1779525880000,-166.98250942,9e-05,2]
[422853314,1779525970000,152.0,8.375e-05,3]
[422853313,1779525970000,152.0,9.688e-05,4]
[422853315,1779526024000,2400.0,8.9e-05,3]
[422853316,1779526027000,4800.0,9e-05,3]
[422853317,1779526055000,300.0,8.9e-05,3]
[422853318,1779526057000,600.0,9e-05,3]
[422853319,1779526072000,10000.0,0.00028082,120]
[422853320,1779526081000,10000.0,0.00028082,120]
[422853321,1779526088000,10000.0,0.00028082,120]
[422853322,1779526097000,10000.0,0.00028082,120]
[422853323,1779526107000,10000.0,0.00028082,120]
[422853324,1779526114000,10000.0,0.00028082,120]
[422853325,1779526115000,700.0,8.9e-05,3]
[422853326,1779526117000,1400.0,9e-05,3]
[422853327,1779526120000,10000.0,0.00028082,120]
[422853328,1779526129000,10000.0,0.00028082,120]
[422853329,1779526136000,10000.0,0.00028082,120]
[422853330,1779526140000,1000.0,0.00028081,120]
[422853331,1779526144000,10000.0,0.00028082,120]
[422853335,1779526167000,1207.0,0.00028082,120]
[422853351,1779526236000,-1852.42,8.261e-05,2]
[422853353,1779526236000,-253.46543089,8.313e-05,2]
[422853352,1779526236000,-419.30437636,8.313e-05,2]
[422853354,1779526236000,-271.90586894,8.313e-05,2]
[422853355,1779526236000,-255.32432381,8.313e-05,2]
[422853357,1779526236000,-6501.06719993,8.314e-05,2]
[422853359,1779526236000,-300.0,8.524e-05,2]
[422853358,1779526236000,-1000.0,8.494e-05,2]
[422853360,1779526236000,-895.0,8.525e-05,2]
[422853356,1779526236000,-427.86280007,8.314e-05,2]
[422853361,1779526236000,-250.0,8.526e-05,2]
[422853363,1779526236000,-500.0,8.565e-05,2]
[422853364,1779526236000,-200.76138691,8.565e-05,2]
[422853365,1779526236000,-159.36,8.702e-05,2]
[422853370,1779526236000,-5173.0,9.022e-05,2]
[422853369,1779526236000,-1687.963,9e-05,2]
[422853368,1779526236000,-10208.0,8.947e-05,2]
[422853366,1779526236000,-261.42,8.74e-05,2]
[422853367,1779526236000,-8337.0,8.929e-05,2]
[422853362,1779526236000,-2202.12,8.557e-05,2]
[422853371,1779526236000,-7007.0,9.04e-05,2]
[422853387,1779526237000,-500.0,9.183e-05,2]
[422853384,1779526237000,-500.0,9.183e-05,2]
[422853385,1779526237000,-500.0,9.183e-05,2]
[422853389,1779526237000,-500.0,9.183e-05,2]
[422853393,1779526237000,-500.0,9.183e-05,2]
[422853391,1779526237000,-500.0,9.183e-05,2]
[422853390,1779526237000,-500.0,9.183e-05,2]
[422853392,1779526237000,-500.0,9.183e-05,2]
[422853386,1779526237000,-500.0,9.183e-05,2]
[422853388,1779526237000,-500.0,9.183e-05,2]
[422853383,1779526237000,-248.30476254,9.183e-05,2]
[422853374,1779526237000,-70689.89,9.066e-05,2]
[422853380,1779526237000,-1680.0,9.144e-05,2]
[422853378,1779526237000,-5906.95,9.136e-05,2]
[422853381,1779526237000,-500.0,9.182e-05,2]
[422853379,1779526237000,-171.58070749,9.138e-05,2]
[422853377,1779526237000,-165.0,9.118e-05,2]
[422853376,1779526237000,-500.0,9.087e-05,2]
[422853372,1779526237000,-208.78535381,9.045e-05,2]
[422853373,1779526237000,-150.0,9.065e-05,2]
[422853375,1779526237000,-167.0653636,9.066e-05,2]
[422853394,1779526237000,-500.0,9.183e-05,2]
[422853382,1779526237000,-500.0,9.183e-05,2]
[422853396,1779526237000,-240.16254694,9.183e-05,2]
[422853405,1779526237000,-500.0,9.183e-05,2]
[422853397,1779526237000,-500.0,9.183e-05,2]
[422853419,1779526237000,-4865.20078609,9.184e-05,2]
[422853417,1779526237000,-17300.79950997,9.184e-05,2]
[422853415,1779526237000,-33070.55695769,9.184e-05,2]
[422853418,1779526237000,-136510.46053344,9.184e-05,2]
[422853416,1779526237000,-44960.45827117,9.184e-05,2]
[422853413,1779526237000,-500.0,9.183e-05,2]
[422853414,1779526237000,-1810.35856159,9.183e-05,2]
[422853412,1779526237000,-500.0,9.183e-05,2]
[422853409,1779526237000,-500.0,9.183e-05,2]
[422853410,1779526237000,-356.32309843,9.183e-05,2]
[422853411,1779526237000,-350.21297117,9.183e-05,2]
[422853395,1779526237000,-500.0,9.183e-05,2]
[422853404,1779526237000,-450.81840537,9.183e-05,2]
[422853408,1779526237000,-354.85598211,9.183e-05,2]
[422853407,1779526237000,-500.0,9.183e-05,2]
[422853406,1779526237000,-500.0,9.183e-05,2]
[422853420,1779526237000,-811.50471421,9.184e-05,2]
[422853400,1779526237000,-500.0,9.183e-05,2]
[422853402,1779526237000,-500.0,9.183e-05,2]
[422853398,1779526237000,-500.0,9.183e-05,2]
[422853401,1779526237000,-500.0,9.183e-05,2]
[422853399,1779526237000,-500.0,9.183e-05,2]
[422853403,1779526237000,-500.0,9.183e-05,2]
[422853440,1779526238000,-250.0,9.614e-05,2]
[422853436,1779526238000,-215.31523495,9.371e-05,2]
[422853438,1779526238000,-1121.0,9.448e-05,2]
[422853445,1779526238000,-20844.22,9.871e-05,2]
[422853441,1779526238000,-330.00014203,9.658e-05,2]
[422853442,1779526238000,-166.75,9.722e-05,2]
[422853444,1779526238000,-159.36,9.79e-05,2]
[422853437,1779526238000,-2675.0,9.429e-05,2]
[422853439,1779526238000,-500.0,9.456e-05,2]
[422853435,1779526238000,-250.0,9.343e-05,2]
[422853429,1779526238000,-1553.52,9.212e-05,2]
[422853432,1779526238000,-10163.0,9.23e-05,2]
[422853431,1779526238000,-154.47727069,9.217e-05,2]
[422853434,1779526238000,-160.0,9.258e-05,2]
[422853433,1779526238000,-4394.0,9.248e-05,2]
[422853428,1779526238000,-1872.89034925,9.212e-05,2]
[422853426,1779526238000,-5122.42199406,9.193e-05,2]
[422853425,1779526238000,-7445.43239384,9.193e-05,2]
[422853427,1779526238000,-2325.77800594,9.212e-05,2]
[422853424,1779526238000,-6180.1456121,9.193e-05,2]
[422853446,1779526238000,-319.62,9.871e-05,2]
[422853430,1779526238000,-10595.81164481,9.212e-05,2]
[422853448,1779526238000,-255.0,9.972e-05,2]
[422853443,1779526238000,-500.0,9.73e-05,2]
[422853450,1779526238000,-250.34384321,0.0001,2]
[422853492,1779526238000,-150.0,0.00010959,2]
[422853479,1779526238000,-2272.08709716,0.000109,2]
[422853481,1779526238000,-150.0,0.00010959,2]
[422853477,1779526238000,-2272.08709716,0.000109,2]
[422853474,1779526238000,-2272.08709719,0.000109,2]
[422853473,1779526238000,-2100.0,0.000109,3]
[422853466,1779526238000,-159.36,0.00010878,2]
[422853471,1779526238000,-900.0,0.000109,3]
[422853447,1779526238000,-4059.02,9.969e-05,2]
[422853464,1779526238000,-500.0,0.00010826,2]
[422853462,1779526238000,-4000.0,0.00010754,2]
[422853469,1779526238000,-7200.0,0.000109,3]
[422853458,1779526238000,-500.0,0.00010552,2]
[422853449,1779526238000,-200.0,9.979e-05,2]
[422853460,1779526238000,-165.0,0.00010638,2]
[422853453,1779526238000,-2351.0,0.00010059,2]
[422853497,1779526238000,-433.0,0.00010969,2]
[422853451,1779526238000,-421.22053859,0.0001,2]
[422853455,1779526238000,-500.0,0.00010278,2]
[422853454,1779526238000,-4000.0,0.00010242,2]
[422853456,1779526238000,-2000.0,0.00010283,2]
[422853457,1779526238000,-4000.0,0.00010498,2]
[422853452,1779526238000,-500.0,0.00010004,2]
[422853500,1779526239000,-152.0,0.00011,5]
[422853505,1779526239000,-269.54347866,0.0001101,2]
[422853509,1779526239000,-585.7955373,0.0001101,2]
[422853502,1779526239000,-246.83671021,0.00011,5]
[422853513,1779526239000,-867.04626424,0.0001101,2]
[422853511,1779526239000,-494.34309822,0.0001101,2]
[422853522,1779526239000,-1076.55582393,0.00011065,2]
[422853519,1779526239000,-1584.35018717,0.00011065,2]
[422853525,1779526239000,-557.49671702,0.00011065,2]
[422853528,1779526239000,-73.59727188,0.00011065,2]
[422853530,1779526239000,-3786.65266812,0.00011099,2]
[422853536,1779526239000,-535.41792625,0.00011099,2]
[422853534,1779526239000,-760.11851838,0.00011099,2]
[422853516,1779526239000,-1783.27162158,0.0001101,2]
[422854020,1779526242000,-200.0,0.00011559,2]
[422854012,1779526242000,-250.0,0.000113,2]
[422854015,1779526242000,-500.0,0.00011374,2]
[422854022,1779526242000,-2000.0,0.00011568,2]
[422854002,1779526242000,-4000.0,0.00011266,2]
[422853999,1779526242000,-500.0,0.000111,2]
[422853996,1779526242000,-9251.6335842,0.00011099,2]
[422853993,1779526242000,-9251.6335842,0.00011099,2]
[422853985,1779526242000,-5838.67569081,0.00011099,2]
[422854017,1779526242000,-328.64,0.00011425,2]
[422853990,1779526242000,-9251.6335842,0.00011099,2]
[422853983,1779526242000,-4662.20208676,0.00011099,2]
[422853930,1779526242000,-300.13246974,0.00011099,2]
[422853927,1779526242000,-876.34113431,0.00011099,2]
[422853925,1779526242000,-2086.3157202,0.00011099,2]
[422853921,1779526242000,-3752.35997061,0.00011099,2]
[422853919,1779526242000,-351.73657812,0.00011099,2]
[422853916,1779526242000,-404.75,0.00011099,2]
[422853987,1779526242000,-9251.63358425,0.00011099,2]
[422854027,1779526242000,-9251.6335842,0.00011669,2]
[422854069,1779526242000,-4609.0,0.00012171,2]
[422854025,1779526242000,-2272.08709716,0.00011582,2]
[422854031,1779526242000,-5838.67569081,0.00011669,2]
[422854077,1779526242000,-2000.0,0.00012255,2]
[422854074,1779526242000,-33205.6659,0.00012255,2]
[422854072,1779526242000,-300.0,0.00012254,2]
[422854060,1779526242000,-2202.12,0.0001198,2]
[422854062,1779526242000,-250.34384321,0.00011997,2]
[422854064,1779526242000,-482.0,0.00012066,2]
[422854067,1779526242000,-165.0,0.00012157,2]
[422854057,1779526242000,-159.36,0.00011966,2]
[422854079,1779526242000,-9251.6335842,0.00012315,2]
[422854055,1779526242000,-532.15488729,0.00011781,2]
[422854050,1779526242000,-500.0,0.00011781,2]
[422854048,1779526242000,-500.0,0.00011781,2]
[422854040,1779526242000,-500.0,0.00011781,2]
[422854035,1779526242000,-500.0,0.00011781,2]
[422854037,1779526242000,-500.0,0.00011781,2]
[422854033,1779526242000,-500.0,0.00011781,2]
[422854042,1779526242000,-635.68695821,0.00011781,2]
[422854052,1779526242000,-500.0,0.00011781,2]
[422854045,1779526242000,-500.0,0.00011781,2]
[422854173,1779526243000,-150.22826443,0.00013488,2]
[422854180,1779526243000,-150.0,0.00013488,2]
[422854170,1779526243000,-150.0,0.00013488,2]
[422854155,1779526243000,-150.0,0.00013488,2]
[422854164,1779526243000,-150.0,0.00013488,2]
[422854157,1779526243000,-150.0,0.00013488,2]
[422854161,1779526243000,-150.0,0.00013488,2]
[422854166,1779526243000,-150.0,0.00013488,2]
[422854153,1779526243000,-150.0,0.00013488,2]
[422854176,1779526243000,-150.0,0.00013488,2]
[422854159,1779526243000,-150.0,0.00013488,2]
[422854178,1779526243000,-150.0,0.00013488,2]
[422854198,1779526243000,-150.0,0.00013638,2]
[422854190,1779526243000,-5838.67569081,0.00013608,2]
[422854192,1779526243000,-150.0,0.00013613,2]
[422854186,1779526243000,-150.0,0.00013581,2]
[422854184,1779526243000,-150.0,0.0001355,2]
[422854188,1779526243000,-9251.6335842,0.00013608,2]
[422854194,1779526243000,-150.0,0.00013624,2]
[422854196,1779526243000,-167.15,0.00013627,2]
[422854207,1779526243000,-150.0,0.00013675,2]
[422854150,1779526243000,-150.0,0.00013488,2]
[422854200,1779526243000,-150.0,0.00013638,2]
[422854203,1779526243000,-150.0,0.00013638,2]
[422854205,1779526243000,-150.0,0.00013644,2]
[422854182,1779526243000,-150.0,0.00013519,2]
[422854211,1779526243000,-165.0,0.00013677,2]
[422854126,1779526243000,-500.0,0.00013082,2]
[422854144,1779526243000,-163.65807,0.00013425,2]
[422854092,1779526243000,-152.0,0.00012525,7]
[422854094,1779526243000,-152.0,0.00012525,7]
[422854082,1779526243000,-5838.67569081,0.00012315,2]
[422854084,1779526243000,-615.7,0.00012329,2]
[422854087,1779526243000,-2272.08709716,0.00012411,2]
[422854089,1779526243000,-152.0,0.00012476,7]
[422854099,1779526243000,-3546.0,0.00012666,2]
[422854097,1779526243000,-374.36,0.00012612,2]
[422854103,1779526243000,-1355.0,0.00012666,2]
[422854105,1779526243000,-1271.0,0.00012666,2]
[422854101,1779526243000,-927.0,0.00012666,2]
[422854107,1779526243000,-150.0,0.00012666,2]
[422854146,1779526243000,-257.578019,0.00013425,2]
[422854119,1779526243000,-5838.67569081,0.00012961,2]
[422854109,1779526243000,-418.0,0.00012666,2]
[422854112,1779526243000,-931.0,0.00012666,2]
[422854114,1779526243000,-2000.0,0.00012853,2]
[422854122,1779526243000,-210.96548,0.00012982,2]
[422854124,1779526243000,-159.36,0.00013053,2]
[422854128,1779526243000,-2200.0,0.00013082,2]
[422854130,1779526243000,-900.0,0.00013082,2]
[422854135,1779526243000,-500.0,0.00013123,2]
[422854133,1779526243000,-167.15,0.00013087,2]
[422854140,1779526243000,-2272.08709716,0.00013241,2]
[422854138,1779526243000,-169.71075566,0.00013231,21]
[422854142,1779526243000,-483.0,0.00013388,2]
[422854117,1779526243000,-9251.6335842,0.00012961,2]
[422854209,1779526243000,-150.0,0.00013675,2]
[422854268,1779526243000,-150.0,0.00013896,2]
[422854214,1779526243000,-500.0,0.00013698,2]
[422854280,1779526243000,-166.66,0.00013973,2]
[422854278,1779526243000,-150.0,0.00013956,2]
[422854282,1779526243000,-150.0,0.00013987,2]
[422854284,1779526243000,-150.0,0.00013987,2]
[422854299,1779526243000,-150.0,0.00014081,2]
[422854301,1779526243000,-150.0,0.00014087,2]
[422854286,1779526243000,-250.0,0.00014,2]
[422854288,1779526243000,-150.0,0.00014018,2]
[422854297,1779526243000,-2272.08709716,0.0001407,2]
[422854295,1779526243000,-150.0,0.0001405,2]
[422854293,1779526243000,-150.0,0.0001405,2]
[422854291,1779526243000,-150.0,0.00014033,2]
[422854276,1779526243000,-150.0,0.00013937,2]
[422854306,1779526243000,-150.0,0.00014087,2]
[422854322,1779526243000,-11.4936975,0.00014143,2]
[422854324,1779526243000,-167.15,0.00014167,2]
[422854326,1779526243000,-150.0,0.00014169,2]
[422854311,1779526243000,-591.66238692,0.000141,2]
[422854313,1779526243000,-166.66,0.0001411,2]
[422854319,1779526243000,-138.5063025,0.00014143,2]
[422854317,1779526243000,-2000.0,0.00014139,2]
[422854315,1779526243000,-150.0,0.00014112,2]
[422854328,1779526243000,-33.24930461,0.00014175,2]
[422854331,1779526243000,-116.75069539,0.00014175,2]
[422854333,1779526243000,-374.36,0.00014188,2]
[422854219,1779526243000,-500.0,0.00013698,2]
[422854308,1779526243000,-1408.33761308,0.000141,2]
[422854274,1779526243000,-150.0,0.00013937,2]
[422854303,1779526243000,-150.0,0.00014087,2]
[422854264,1779526243000,-150.0,0.00013862,2]
[422854262,1779526243000,-150.0,0.00013862,2]
[422854225,1779526243000,-500.0,0.00013698,2]
[422854221,1779526243000,-500.0,0.00013698,2]
[422854223,1779526243000,-500.0,0.00013698,2]
[422854227,1779526243000,-500.0,0.00013698,2]
[422854230,1779526243000,-500.0,0.00013698,2]
[422854234,1779526243000,-209.60104111,0.00013698,2]
[422854235,1779526243000,-200.0,0.00013699,2]
[422854237,1779526243000,-166.66,0.00013699,2]
[422854239,1779526243000,-150.0,0.00013706,2]
[422854240,1779526243000,-150.0,0.00013737,2]
[422854238,1779526243000,-2000.0,0.00013699,7]
[422854247,1779526243000,-150.0,0.00013787,2]
[422854232,1779526243000,-500.0,0.00013698,2]
[422854242,1779526243000,-150.0,0.0001376,2]
[422854266,1779526243000,-150.0,0.00013894,2]
[422854272,1779526243000,-150.0,0.00013937,2]
[422854270,1779526243000,-150.0,0.00013925,2]
[422854260,1779526243000,-166.66,0.00013836,2]
[422854254,1779526243000,-500.0,0.00013808,2]
[422854255,1779526243000,-500.0,0.00013808,2]
[422854217,1779526243000,-500.0,0.00013698,2]
[422854252,1779526243000,-150.0,0.000138,2]
[422854250,1779526243000,-150.0,0.00013787,2]
[422854243,1779526243000,-150.0,0.00013769,2]
[422854245,1779526243000,-150.0,0.00013787,2]
[422854258,1779526243000,-150.0,0.00013831,2]
[422854427,1779526244000,-365.2,0.00014504,2]
[422854429,1779526244000,-9999.99,0.00014504,2]
[422854417,1779526244000,-1200.0,0.000145,5]
[422854423,1779526244000,-299.99,0.00014504,2]
[422854419,1779526244000,-2800.0,0.000145,5]
[422854415,1779526244000,-9700.0,0.000145,5]
[422854411,1779526244000,-2815.61,0.00014497,2]
[422854421,1779526244000,-2368.27,0.00014504,2]
[422854409,1779526244000,-1532.49,0.00014497,2]
[422854407,1779526244000,-288.94,0.00014497,2]
[422854400,1779526244000,-15163.0728385,0.00014465,2]
[422854413,1779526244000,-68342.52,0.00014497,2]
[422854405,1779526244000,-150.0,0.00014487,2]
[422854455,1779526244000,-478.68,0.00014553,2]
[422854431,1779526244000,-1425.91,0.00014504,2]
[422854436,1779526244000,-478.79,0.00014514,2]
[422854438,1779526244000,-150.0,0.00014518,2]
[422854433,1779526244000,-8515.75,0.00014504,2]
[422854448,1779526244000,-150.0,0.00014537,2]
[422854453,1779526244000,-150.0,0.00014549,2]
[422854440,1779526244000,-337.0,0.0001452,2]
[422854444,1779526244000,-5892.3808889,0.00014523,2]
[422854451,1779526244000,-150.0,0.00014537,2]
[422854442,1779526244000,-478.68,0.00014522,2]
[422854446,1779526244000,-150.0,0.00014537,2]
[422854457,1779526244000,-150.0,0.00014578,2]
[422854392,1779526244000,-2200.0,0.00014452,2]
[422854425,1779526244000,-2772.52,0.00014504,2]
[422854396,1779526244000,-150.0,0.00014456,2]
[422854339,1779526244000,-150.0,0.00014237,2]
[422854402,1779526244000,-150.0,0.00014487,2]
[422854335,1779526244000,-150.0,0.00014206,2]
[422854459,1779526244000,-150.0,0.0001458,2]
[422854341,1779526244000,-150.0,0.00014237,2]
[422854337,1779526244000,-150.0,0.00014237,2]
[422854343,1779526244000,-150.0,0.00014237,2]
[422854351,1779526244000,-150.0,0.00014237,2]
[422854349,1779526244000,-150.0,0.00014237,2]
[422854345,1779526244000,-150.0,0.00014237,2]
[422854347,1779526244000,-150.0,0.00014237,2]
[422854354,1779526244000,-166.66,0.00014247,2]
[422854356,1779526244000,-9251.6335842,0.00014254,2]
[422854360,1779526244000,-150.0,0.00014268,2]
[422854362,1779526244000,-150.0,0.00014299,2]
[422854358,1779526244000,-5838.67569081,0.00014254,2]
[422854366,1779526244000,-2000.0,0.00014329,7]
[422854377,1779526244000,-150.0,0.00014387,2]
[422854375,1779526244000,-150.0,0.00014387,2]
[422854369,1779526244000,-150.0,0.00014331,2]
[422854371,1779526244000,-150.0,0.00014362,2]
[422854373,1779526244000,-166.66,0.00014384,2]
[422854383,1779526244000,-588.80980333,0.00014395,2]
[422854381,1779526244000,-150.0,0.00014393,2]
[422854386,1779526244000,-150.0,0.00014424,2]
[422854379,1779526244000,-150.0,0.00014387,2]
[422854390,1779526244000,-150.0,0.00014441,2]
[422854398,1779526244000,-8671.0867844,0.00014465,2]
[422854388,1779526244000,-150.0,0.00014424,2]
[422854394,1779526244000,-900.0,0.00014452,2]
[422854465,1779526244000,-1500.0,0.000146,5]
[422854364,1779526244000,-150.0,0.00014305,2]
[422854461,1779526244000,-478.68,0.00014584,2]
[422854533,1779526244000,-478.79,0.00014789,2]
[422854542,1779526244000,-300.0,0.000148,5]
[422854537,1779526244000,-150.0,0.00014799,2]
[422854544,1779526244000,-700.0,0.000148,5]
[422854546,1779526244000,-478.68,0.00014803,2]
[422854550,1779526244000,-150.0,0.0001483,2]
[422854548,1779526244000,-478.68,0.0001483,2]
[422854564,1779526244000,-503.65425,0.0001485,2]
[422854569,1779526244000,-150.0,0.0001485,2]
[422854566,1779526244000,-503.65426,0.0001485,2]
[422854559,1779526244000,-754.3502764,0.0001485,2]
[422854554,1779526244000,-150.0,0.00014836,2]
[422854562,1779526244000,-31487.28040728,0.0001485,2]
[422854552,1779526244000,-150.0,0.00014836,2]
[422854557,1779526244000,-150.0,0.00014836,2]
[422854573,1779526244000,-478.68,0.0001486,2]
[422854571,1779526244000,-500.0,0.00014856,2]
[422854576,1779526244000,-503.65426,0.0001486,2]
[422854578,1779526244000,-150.0,0.00014861,2]
[422854582,1779526244000,-3383.3388708,0.00014873,2]
[422854584,1779526244000,-200.0,0.00014879,2]
[422854586,1779526244000,-200.0,0.00014879,2]
[422854595,1779526244000,-478.68,0.0001489,2]
[422854591,1779526244000,-1314.7678914,0.00014886,2]
[422854597,1779526244000,-478.79,0.00014891,2]
[422854589,1779526244000,-200.0,0.0001488,2]
[422854593,1779526244000,-171.0,0.00014886,2]
[422854539,1779526244000,-2400.0,0.000148,5]
[422854535,1779526244000,-150.0,0.00014799,2]
[422854580,1779526244000,-1934.7809828,0.00014873,2]
[422854528,1779526244000,-150.0,0.00014768,2]
[422854531,1779526244000,-478.68,0.00014782,2]
[422854467,1779526244000,-3500.0,0.000146,5]
[422854469,1779526244000,-478.79,0.00014607,2]
[422854478,1779526244000,-478.68,0.00014637,2]
[422854471,1779526244000,-478.68,0.0001461,2]
[422854476,1779526244000,-150.0,0.00014612,2]
[422854487,1779526244000,-150.0,0.00014674,2]
[422854481,1779526244000,-150.0,0.00014643,2]
[422854473,1779526244000,-150.0,0.00014612,2]
[422854484,1779526244000,-478.68,0.00014667,2]
[422854490,1779526244000,-150.0,0.00014687,2]
[422854492,1779526244000,-150.0,0.00014687,2]
[422854497,1779526244000,-478.68,0.00014695,2]
[422854495,1779526244000,-150.0,0.00014687,2]
[422854463,1779526244000,-12100.0,0.000146,5]
[422854503,1779526244000,-2400.0,0.000147,5]
[422854526,1779526244000,-478.68,0.00014755,2]
[422854501,1779526244000,-3998.0,0.000147,2]
[422854524,1779526244000,-1507.0,0.00014753,5]
[422854520,1779526244000,-150.0,0.00014737,2]
[422854518,1779526244000,-478.68,0.00014725,2]
[422854513,1779526244000,-167.15,0.00014707,2]
[422854522,1779526244000,-1643.0,0.00014753,5]
[422854515,1779526244000,-150.0,0.00014714,2]
[422854511,1779526244000,-150.0,0.00014705,2]
[422854505,1779526244000,-300.0,0.000147,5]
[422854507,1779526244000,-700.0,0.000147,5]
[422854499,1779526244000,-1512.63363969,0.000147,2]
[422854509,1779526244000,-478.79,0.00014701,2]
[422854660,1779526245000,-70996.5952001,0.00014938,2]
[422854647,1779526245000,-251.78123832,0.00014902,2]
[422854650,1779526245000,-150.0,0.00014924,2]
[422854652,1779526245000,-150.0,0.00014925,2]
[422854643,1779526245000,-3215.04206956,0.000149,2]
[422854654,1779526245000,-1308.4054057,0.00014938,2]
[422854656,1779526245000,-395728.2716872,0.00014938,2]
[422854658,1779526245000,-1328.095456,0.00014938,2]
[422854671,1779526245000,-431.7079905,0.00014964,2]
[422854666,1779526245000,-150.0,0.00014955,2]
[422854667,1779526245000,-2000.0,0.00014959,7]
[422854664,1779526245000,-478.8192772,0.00014949,2]
[422854669,1779526245000,-478.83,0.00014963,2]
[422854649,1779526245000,-478.68,0.0001492,2]
[422854679,1779526245000,-150.0,0.00014986,2]
[422854685,1779526245000,-150.0,0.00014986,2]
[422854681,1779526245000,-220.58459687,0.00014986,2]
[422854675,1779526245000,-293.3643701,0.00014967,2]
[422854662,1779526245000,-67002.49652761,0.00014938,3]
[422854645,1779526245000,-315.0,0.000149,2]
[422854631,1779526245000,-700.0,0.000149,5]
[422854639,1779526245000,-199.43891012,0.000149,2]
[422854687,1779526245000,-150.0,0.00014986,2]
[422854600,1779526245000,-25000.0,0.00014891,3]
[422854602,1779526245000,-150.0,0.00014893,2]
[422854604,1779526245000,-478.68,0.00014895,2]
[422854606,1779526245000,-1100.38972464,0.00014899,5]
[422854614,1779526245000,-25000.0,0.000149,3]
[422854608,1779526245000,-500.0,0.00014899,2]
[422854610,1779526245000,-500.0,0.00014899,2]
[422854641,1779526245000,-393.11849236,0.000149,2]
[422854624,1779526245000,-13986.62242141,0.000149,3]
[422854626,1779526245000,-308.0,0.000149,2]
[422854635,1779526245000,-2924.83640745,0.000149,2]
[422854630,1779526245000,-300.0,0.000149,5]
[422854633,1779526245000,-250.34384321,0.000149,2]
[422854634,1779526245000,-1000.0,0.000149,2]
[422854632,1779526245000,-9251.6335842,0.000149,2]
[422854636,1779526245000,-5838.67569081,0.000149,2]
[422854637,1779526245000,-2272.08709716,0.000149,2]
[422854628,1779526245000,-2400.0,0.000149,5]
[422854612,1779526245000,-500.0,0.00014899,2]
[422854673,1779526245000,-754.924944,0.00014964,2]
[422854677,1779526245000,-5800.0,0.00014982,2]
[422854742,1779526245000,-201.85473864,0.00014999,2]
[422854748,1779526245000,-500.0,0.00014999,2]
[422854750,1779526245000,-500.0,0.00014999,2]
[422854754,1779526245000,-500.0,0.00014999,2]
[422854752,1779526245000,-500.0,0.00014999,2]